fUST/lending_fUST_20241011
["ID","MTS","AMOUNT","RATE_DAILY","PERIOD"]
[340122439,1728630670911,-500.0,0.00066301,120]
[340122440,1728630670920,-748.85,0.00066301,120]
[340122441,1728630670931,-1358.21,0.00066301,120]
[340122442,1728630670941,-1932.27,0.00066301,120]
[340122443,1728630670951,-746.7,0.00066301,120]
[340122444,1728630670961,-690.38,0.00066301,120]
[340122445,1728630670971,-1417.72,0.00066301,120]
[340122446,1728630670981,-2183.44,0.00066301,120]
[340122447,1728630670992,-558.97,0.00066301,120]
[340122448,1728630671004,-500.0,0.00066301,120]
[340122449,1728630671013,-1914.69,0.00066301,120]
[340122450,1728630671023,-2189.2,0.00066301,120]
[340122451,1728630671033,-1059.16,0.00066301,120]
[340122452,1728630671043,-500.0,0.00066301,120]
[340122453,1728630671053,-500.0,0.00066301,120]
[340122454,1728630671062,-500.0,0.00066301,120]
[340122455,1728630671072,-500.0,0.00066301,30]
[340122456,1728630671084,-1638.11,0.00066301,120]
[340122457,1728630671095,-2460.61,0.00066301,120]
[340122458,1728630671105,-761.71,0.00066301,120]
[340122459,1728630671114,-627.47598087,0.00066301,2]
[340122460,1728630671125,-3378.04,0.00066301,120]
[340122461,1728630671138,-2956.22,0.00066301,18]
[340122462,1728630671148,-794.83,0.00066301,120]
[340122463,1728630671157,-5039.97,0.00066301,120]
[340122464,1728630671167,-2873.27,0.00066301,120]
[340122465,1728630671178,-958.81,0.00066301,120]
[340122466,1728630671188,-777.64,0.00066301,120]
[340122467,1728630671197,-500.0,0.00066301,120]
[340122468,1728630671207,-522.81,0.00066301,120]
[340122469,1728630671220,-4031.23290325,0.00066325,120]
[340122470,1728630671229,-300.0,0.000665,64]
[340122471,1728630671238,-845.14,0.00066575,120]
[340122472,1728630671248,-1317.67,0.00066575,120]
[340122473,1728630671258,-1566.82,0.00066575,120]
[340122474,1728630671267,-1563.53,0.00066575,7]
[340122475,1728630671277,-500.0,0.00066575,120]
[340122476,1728630671286,-1471.82,0.00066575,120]
[340122477,1728630671295,-500.0,0.00066575,120]
[340122478,1728630671304,-534.44,0.00066575,120]
[340122479,1728630671313,-681.48,0.00066575,120]
[340122480,1728630671322,-500.0,0.00066575,2]
[340122481,1728630671332,-500.0,0.00066575,120]
[340122482,1728630671341,-1399.61,0.00066575,120]
[340122483,1728630671351,-650.96,0.00066575,2]
[340122484,1728630671360,-500.0,0.00066575,120]
[340122485,1728630671369,-1996.76,0.00066575,120]
[340122486,1728630671379,-1351.2,0.00066575,2]
[340122487,1728630671389,-2436.48,0.00066575,30]
[340122488,1728630671398,-683.8,0.00066575,120]
[340122489,1728630671408,-500.0,0.00066575,120]
[340122490,1728630671417,-500.0,0.00066575,120]
[340122491,1728630671426,-1950.95,0.00066575,120]
[340122492,1728630671435,-5150.52,0.00066575,120]
[340122493,1728630671445,-669.94,0.00066575,120]
[340122494,1728630671455,-934.88,0.00066575,120]
[340122495,1728630671464,-2257.7,0.00066575,30]
[340122496,1728630671473,-500.0,0.00066575,120]
[340122497,1728630671483,-500.0,0.00066575,120]
[340122498,1728630671492,-1878.48,0.00066575,120]
[340122499,1728630671502,-1334.39,0.00066575,120]
[340122500,1728630671512,-4210.56,0.00066575,120]
[340122501,1728630671521,-813.36,0.00066575,120]
[340122502,1728630671530,-500.0,0.00066575,18]
[340122503,1728630671547,-1181.92,0.00066575,120]
[340122504,1728630671560,-689.37,0.00066575,120]
[340122505,1728630671570,-1220.56,0.00066575,120]
[340122506,1728630671580,-825.98,0.00066575,120]
[340122507,1728630671591,-500.0,0.00066575,120]
[340122508,1728630671601,-500.0,0.00066575,120]
[340122509,1728630671610,-748.85,0.00066575,120]
[340122510,1728630671620,-1358.21,0.00066575,120]
[340122511,1728630671630,-1932.27,0.00066575,120]
[340122512,1728630671640,-746.7,0.00066575,120]
[340122513,1728630671649,-690.38,0.00066575,120]
[340122514,1728630671659,-1417.72,0.00066575,120]
[340122515,1728630671668,-2183.44,0.00066575,120]
[340122516,1728630671678,-558.97,0.00066575,120]
[340122517,1728630671688,-500.0,0.00066575,120]
[340122518,1728630671697,-1914.69,0.00066575,120]
[340122519,1728630671707,-2189.2,0.00066575,120]
[340122520,1728630671716,-1059.16,0.00066575,120]
[340122521,1728630671726,-500.0,0.00066575,120]
[340122522,1728630671736,-500.0,0.00066575,120]
[340122523,1728630671746,-500.0,0.00066575,120]
[340122524,1728630671755,-500.0,0.00066575,30]
[340122525,1728630671764,-1638.11,0.00066575,120]
[340122526,1728630671774,-2460.61,0.00066575,120]
[340122527,1728630671783,-761.71,0.00066575,120]
[340122528,1728630671793,-3378.04,0.00066575,120]
[340122529,1728630671803,-2956.22,0.00066575,18]
[340122530,1728630671812,-794.83,0.00066575,120]
[340122531,1728630671822,-5039.97,0.00066575,120]
[340122532,1728630671831,-2873.27,0.00066575,120]
[340122533,1728630671841,-958.81,0.00066575,120]
[340122534,1728630671851,-777.64,0.00066575,120]
[340122535,1728630671861,-500.0,0.00066575,120]
[340122536,1728630671871,-522.81,0.00066575,120]
[340122537,1728630671881,-187.0,0.0006662,14]
[340122538,1728630671892,-1000.0,0.00066684,120]
[340122539,1728630671901,-10000.0,0.0006675,120]
[340122540,1728630671911,-253.0,0.00066754,120]
[340122541,1728630671920,-10000.0,0.000668,120]
[340122542,1728630671929,-845.14,0.00066849,120]
[340122543,1728630671939,-1317.67,0.00066849,120]
[340122544,1728630671949,-1566.82,0.00066849,120]
[340122545,1728630671959,-1563.53,0.00066849,7]
[340122546,1728630671968,-500.0,0.00066849,120]
[340122547,1728630671977,-1471.82,0.00066849,120]
[340122548,1728630671986,-500.0,0.00066849,120]
[340122549,1728630671996,-534.44,0.00066849,120]
[340122550,1728630672005,-681.48,0.00066849,120]
[340122551,1728630672014,-500.0,0.00066849,2]
[340122552,1728630672023,-500.0,0.00066849,120]
[340122553,1728630672032,-1399.61,0.00066849,120]
[340122554,1728630672041,-650.96,0.00066849,2]
[340122555,1728630672051,-500.0,0.00066849,120]
[340122556,1728630672061,-1996.76,0.00066849,120]
[340122557,1728630672072,-1351.2,0.00066849,2]
[340122558,1728630672083,-2436.48,0.00066849,30]
[340122559,1728630672093,-683.8,0.00066849,120]
[340122560,1728630672102,-500.0,0.00066849,120]
[340122561,1728630672113,-500.0,0.00066849,120]
[340122562,1728630672126,-1950.95,0.00066849,120]
[340122563,1728630672137,-5150.52,0.00066849,120]
[340122564,1728630672146,-669.94,0.00066849,120]
[340122565,1728630672156,-934.88,0.00066849,120]
[340122566,1728630672173,-2257.7,0.00066849,30]
[340122567,1728630672184,-500.0,0.00066849,120]
[340122568,1728630672196,-500.0,0.00066849,120]
[340122569,1728630672207,-1878.48,0.00066849,120]
[340122570,1728630672216,-1334.39,0.00066849,120]
[340122571,1728630672226,-4210.56,0.00066849,120]
[340122572,1728630672235,-813.36,0.00066849,120]
[340122573,1728630672244,-617.10690815,0.00066849,18]
[340122574,1728630672253,-1181.92,0.00066849,120]
[340122575,1728630672263,-689.37,0.00066849,120]
[340122576,1728630672273,-1220.56,0.00066849,120]
[340122577,1728630672282,-825.98,0.00066849,120]
[340122578,1728630672291,-500.0,0.00066849,120]
[340122579,1728630672301,-500.0,0.00066849,120]
[340122580,1728630672311,-748.85,0.00066849,120]
[340122581,1728630672321,-1358.21,0.00066849,120]
[340122582,1728630672333,-1932.27,0.00066849,120]
[340122583,1728630672344,-746.7,0.00066849,120]
[340122584,1728630672354,-690.38,0.00066849,120]
[340122585,1728630672368,-1417.72,0.00066849,120]
[340122586,1728630672381,-2183.44,0.00066849,120]
[340122587,1728630672391,-558.97,0.00066849,120]
[340122588,1728630672403,-500.0,0.00066849,120]
[340122589,1728630672412,-1914.69,0.00066849,120]
[340122590,1728630672422,-2189.2,0.00066849,120]
[340122591,1728630672434,-1059.16,0.00066849,120]
[340122592,1728630672445,-500.0,0.00066849,120]
[340122593,1728630672455,-202.04905994,0.00066849,120]
[340122594,1728630672466,-488.66687895,0.00066849,120]
[340122595,1728630672475,-500.0,0.00066849,30]
[340122596,1728630672485,-1638.11,0.00066849,120]
[340122597,1728630672494,-2460.61,0.00066849,120]
[340122598,1728630672503,-761.71,0.00066849,120]
[340122599,1728630672514,-3378.04,0.00066849,120]
[340122600,1728630672524,-2956.22,0.00066849,18]
[340122601,1728630672533,-794.83,0.00066849,120]
[340122602,1728630672543,-5039.97,0.00066849,120]
[340122603,1728630672553,-2873.27,0.00066849,120]
[340122604,1728630672563,-958.81,0.00066849,120]
[340122605,1728630672573,-777.64,0.00066849,120]
[340122606,1728630672583,-500.0,0.00066849,120]
[340122607,1728630672717,-522.81,0.00066849,120]
[340122608,1728630672727,-89528.0,0.00067,120]
[340122609,1728630672738,-1000.0,0.00067,120]
[340122610,1728630672749,-500.0,0.00067,120]
[340122611,1728630672758,-1232.08253324,0.00067,120]
[340122612,1728630672768,-1000.0,0.00067,120]
[340122613,1728630672778,-2244.05187498,0.00067036,2]
[340122614,1728630672789,-3544.84394584,0.0006705,120]
[340122615,1728630672799,-845.14,0.00067123,120]
[340122616,1728630672808,-1317.67,0.00067123,120]
[340122617,1728630672819,-1566.82,0.00067123,120]
[340122618,1728630672831,-1563.53,0.00067123,7]
[340122619,1728630672841,-500.0,0.00067123,120]
[340122620,1728630672850,-1471.82,0.00067123,120]
[340122621,1728630672859,-500.0,0.00067123,120]
[340122622,1728630672871,-534.44,0.00067123,120]
[340122623,1728630672882,-681.48,0.00067123,120]
[340122624,1728630672893,-500.0,0.00067123,2]
[340122625,1728630672903,-500.0,0.00067123,120]
[340122626,1728630672916,-1399.61,0.00067123,120]
[340122627,1728630672926,-650.96,0.00067123,2]
[340122628,1728630672939,-500.0,0.00067123,120]
[340122629,1728630672950,-1996.76,0.00067123,120]
[340122630,1728630672961,-1351.2,0.00067123,2]
[340122631,1728630672971,-2436.48,0.00067123,30]
[340122632,1728630672981,-683.8,0.00067123,120]
[340122633,1728630672992,-500.0,0.00067123,120]
[340122634,1728630673002,-528.19551851,0.00067123,120]
[340122635,1728630673013,-1950.95,0.00067123,120]
[340122636,1728630673024,-5150.52,0.00067123,120]
[340122637,1728630673035,-669.94,0.00067123,120]
[340122638,1728630673047,-934.88,0.00067123,120]
[340122639,1728630673059,-2257.7,0.00067123,30]
[340122640,1728630673069,-529.04591046,0.00067123,120]
[340122641,1728630673079,-500.0,0.00067123,120]
[340122642,1728630673089,-1878.48,0.00067123,120]
[340122643,1728630673098,-1334.39,0.00067123,120]
[340122644,1728630673108,-4210.56,0.00067123,120]
[340122645,1728630673118,-813.36,0.00067123,120]
[340122646,1728630673127,-1181.92,0.00067123,120]
[340122647,1728630673142,-689.37,0.00067123,120]
[340122648,1728630673151,-1220.56,0.00067123,120]
[340122649,1728630673162,-825.98,0.00067123,120]
[340122650,1728630673172,-500.0,0.00067123,120]
[340122651,1728630673183,-500.0,0.00067123,120]
[340122652,1728630673194,-748.85,0.00067123,120]
[340122653,1728630673205,-1358.21,0.00067123,120]
[340122654,1728630673216,-1932.27,0.00067123,120]
[340122655,1728630673227,-746.7,0.00067123,120]
[340122656,1728630673237,-690.38,0.00067123,120]
[340122657,1728630673248,-1417.72,0.00067123,120]
[340122658,1728630673258,-2183.44,0.00067123,120]
[340122659,1728630673268,-558.97,0.00067123,120]
[340122660,1728630673278,-500.0,0.00067123,120]
[340122661,1728630673288,-1914.69,0.00067123,120]
[340122662,1728630673299,-2189.2,0.00067123,120]
[340122663,1728630673311,-1059.16,0.00067123,120]
[340122664,1728630673321,-500.0,0.00067123,120]
[340122665,1728630673331,-500.0,0.00067123,30]
[340122666,1728630673343,-1638.11,0.00067123,120]
[340122667,1728630673354,-2460.61,0.00067123,120]
[340122668,1728630673365,-761.71,0.00067123,120]
[340122669,1728630673374,-3378.04,0.00067123,120]
[340122670,1728630673386,-2956.22,0.00067123,18]
[340122671,1728630673396,-794.83,0.00067123,120]
[340122672,1728630673406,-5039.97,0.00067123,120]
[340122673,1728630673416,-2873.27,0.00067123,120]
[340122674,1728630673426,-958.81,0.00067123,120]
[340122675,1728630673437,-777.64,0.00067123,120]
[340122676,1728630673447,-500.0,0.00067123,120]
[340122677,1728630673458,-522.81,0.00067123,120]
[340122678,1728630673471,-1000.0,0.00067158,120]
[340122679,1728630673492,-253.0,0.00067315,120]
[340122680,1728630673503,-6367.78042789,0.00067318,120]
[340122681,1728630673515,-4031.23290325,0.00067325,120]
[340122682,1728630673527,-845.14,0.00067397,120]
[340122683,1728630673538,-1317.67,0.00067397,120]
[340122684,1728630673548,-1566.82,0.00067397,120]
[340122685,1728630673559,-1563.53,0.00067397,7]
[340122686,1728630673572,-500.0,0.00067397,120]
[340122687,1728630673585,-1471.82,0.00067397,120]
[340122688,1728630673595,-500.0,0.00067397,120]
[340122689,1728630673606,-534.44,0.00067397,120]
[340122690,1728630673618,-681.48,0.00067397,120]
[340122691,1728630673627,-500.0,0.00067397,2]
[340122692,1728630673637,-500.0,0.00067397,120]
[340122693,1728630673647,-1399.61,0.00067397,120]
[340122694,1728630673657,-650.96,0.00067397,2]
[340122695,1728630673667,-500.0,0.00067397,120]
[340122696,1728630673678,-1996.76,0.00067397,120]
[340122697,1728630673689,-1351.2,0.00067397,2]
[340122698,1728630673699,-2436.48,0.00067397,30]
[340122699,1728630673709,-683.8,0.00067397,120]
[340122700,1728630673719,-500.0,0.00067397,120]
[340122701,1728630673729,-1950.95,0.00067397,120]
[340122702,1728630673739,-5150.52,0.00067397,120]
[340122703,1728630673752,-669.94,0.00067397,120]
[340122704,1728630673762,-934.88,0.00067397,120]
[340122705,1728630673775,-2257.7,0.00067397,30]
[340122706,1728630673786,-500.0,0.00067397,120]
[340122707,1728630673797,-1878.48,0.00067397,120]
[340122708,1728630673807,-1334.39,0.00067397,120]
[340122709,1728630673818,-4210.56,0.00067397,120]
[340122710,1728630673828,-813.36,0.00067397,120]
[340122711,1728630673840,-1181.92,0.00067397,120]
[340122712,1728630673849,-689.37,0.00067397,120]
[340122713,1728630673860,-1220.56,0.00067397,120]
[340122714,1728630673871,-825.98,0.00067397,120]
[340122715,1728630673883,-500.0,0.00067397,120]
[340122716,1728630673895,-500.0,0.00067397,120]
[340122717,1728630673906,-748.85,0.00067397,120]
[340122718,1728630673916,-1358.21,0.00067397,120]
[340122719,1728630673926,-1932.27,0.00067397,120]
[340122720,1728630673937,-746.7,0.00067397,120]
[340122721,1728630673947,-690.38,0.00067397,120]
[340122722,1728630673958,-1417.72,0.00067397,120]
[340122723,1728630673969,-2183.44,0.00067397,120]
[340122724,1728630673978,-558.97,0.00067397,120]
[340122725,1728630673988,-500.0,0.00067397,120]
[340122726,1728630673999,-1914.69,0.00067397,120]
[340122727,1728630674011,-2189.2,0.00067397,120]
[340122728,1728630674021,-1059.16,0.00067397,120]
[340122729,1728630674031,-500.0,0.00067397,120]
[340122730,1728630674043,-500.0,0.00067397,30]
[340122731,1728630674053,-1638.11,0.00067397,120]
[340122732,1728630674063,-2460.61,0.00067397,120]
[340122733,1728630674074,-761.71,0.00067397,120]
[340122734,1728630674087,-3378.04,0.00067397,120]
[340122735,1728630674099,-2956.22,0.00067397,18]
[340122736,1728630674109,-794.83,0.00067397,120]
[340122737,1728630674119,-5039.97,0.00067397,120]
[340122738,1728630674128,-2873.27,0.00067397,120]
[340122739,1728630674141,-958.81,0.00067397,120]
[340122740,1728630674151,-777.64,0.00067397,120]
[340122741,1728630674160,-500.0,0.00067397,120]
[340122742,1728630674172,-522.81,0.00067397,120]
[340122743,1728630674183,-13094.20194034,0.000675,120]
[340122744,1728630674194,-9470.06135744,0.000675,120]
[340122759,1728631432048,160.37454454,0.00022,2]
[340122769,1728631721103,3780.77554217,0.00021,2]
[340122773,1728631817342,-212.784239,0.00026986,2]
[340122774,1728631817371,-171.37844654,0.000295,120]
[340122775,1728631817401,-875.30800158,0.0003,15]
[340122776,1728631817428,-212.784239,0.00032776,2]
[340122777,1728631817455,-400.0,0.00032999,2]
[340122778,1728631817484,-400.0,0.00032999,2]
[340122779,1728631817514,-3000.0,0.00033,54]
[340122780,1728631817541,-3000.0,0.00033,48]
[340122781,1728631817567,-165.246903,0.00033806,2]
[340122782,1728631817592,-165.246903,0.00034247,2]
[340122783,1728631817618,-165.246903,0.00034687,2]
[340122784,1728631817642,-1858.03971602,0.00035,7]
[340122785,1728631817669,-165.246903,0.00035128,2]
[340122786,1728631817696,-507.0,0.00035456,2]
[340122787,1728631817722,-165.246903,0.00035568,2]
[340122788,1728631817747,-475.26152019,0.00036562,2]
[340122789,1728631817771,-2457.2870519,0.000372,103]
[340122790,1728631817796,-212.784239,0.00038565,2]
[340122791,1728631817821,-297.72,0.000399,2]
[340122810,1728631832750,-751.143737,0.00039251,35]
[340122811,1728631832760,-918.48696936,0.00039251,30]
[340122812,1728631832770,-1999.999999,0.00039251,120]
[340122813,1728631832782,-298.41516181,0.00039251,30]
[340122814,1728631832793,-22003.48202823,0.00039251,120]
[340122844,1728631843877,-17937.88675928,0.00039251,120]
[340122845,1728631843887,-226.63888102,0.00039251,120]
[340122846,1728631843898,-253.2644359,0.00040147,2]
[340122847,1728631843908,-150.0,0.00041797,30]
[340122848,1728631843917,-300.0,0.00041797,30]
[340122849,1728631843927,-1021.0,0.0004366,120]
[340122850,1728631843937,-212.784239,0.00044355,120]
[340122851,1728631843949,-400.0,0.00044658,2]
[340122852,1728631843959,-163.11234267,0.00045,120]
[340122853,1728631843970,-159.08440754,0.00045,30]
[340122854,1728631843981,-1407.55912327,0.000465,120]
[340122855,1728631843992,-253.0,0.00047,90]
[340122856,1728631844004,-400.0,0.00049517,2]
[340122857,1728631844014,-399.15745118,0.00049999,120]
[340122858,1728631844024,-500.0,0.00049999,120]
[340122859,1728631844035,-610.81620645,0.00049999,120]
[340122860,1728631844046,-500.0,0.00049999,120]
[340122861,1728631844056,-500.0,0.00049999,120]
[340122862,1728631844068,-500.0,0.00049999,120]
[340122863,1728631844081,-500.0,0.00049999,120]
[340122864,1728631844093,-500.0,0.00049999,120]
[340122865,1728631844105,-500.0,0.00049999,120]
[340122866,1728631844114,-500.0,0.00049999,120]
[340122867,1728631844125,-500.0,0.00049999,120]
[340122868,1728631844138,-500.0,0.00049999,120]
[340122869,1728631844149,-500.0,0.00049999,120]
[340122870,1728631844161,-500.0,0.00049999,120]
[340122871,1728631844172,-500.0,0.00049999,120]
[340122872,1728631844188,-500.0,0.00049999,120]
[340122873,1728631844200,-500.0,0.00049999,120]
[340122874,1728631844209,-500.0,0.00049999,120]
[340122875,1728631844221,-500.0,0.00049999,120]
[340122876,1728631844233,-500.0,0.00049999,120]
[340122877,1728631844244,-500.0,0.00049999,120]
[340122878,1728631844253,-500.0,0.00049999,120]
[340122879,1728631844263,-500.0,0.00049999,120]
[340122880,1728631844272,-500.0,0.00049999,120]
[340122881,1728631844281,-626.63018199,0.00049999,120]
[340122882,1728631844290,-302.7,0.0005,30]
[340122883,1728631844300,-19492.0,0.0005,2]
[340122884,1728631844310,-161.07262673,0.0005,120]
[340122885,1728631844320,-561.44492576,0.0005,120]
[340122886,1728631844329,-212.784239,0.00050144,120]
[340122887,1728631844340,-5419.359999,0.000504,120]
[340122888,1728631844350,-5419.359999,0.000507,120]
[340122889,1728631844360,-187.66,0.0005089,10]
[340122890,1728631844370,-156.39,0.0005089,10]
[340122891,1728631844382,-5419.359999,0.000509,120]
[340122892,1728631844399,-150.0,0.00051,85]
[340122893,1728631844409,-153.0,0.00051173,120]
[340122894,1728631844418,-153.0,0.00051173,120]
[340122895,1728631844428,-153.0,0.00051173,120]
[340122896,1728631844437,-153.0,0.00051173,120]
[340122897,1728631844447,-153.0,0.00051173,120]
[340122898,1728631844457,-153.0,0.00051173,120]
[340122899,1728631844467,-153.0,0.00051173,120]
[340122900,1728631844476,-153.0,0.00051173,120]
[340122901,1728631844485,-153.0,0.00051173,120]
[340122902,1728631844495,-153.0,0.00051173,120]
[340122903,1728631844504,-153.0,0.00051176,120]
[340122904,1728631844514,-153.0,0.00051176,120]
[340122905,1728631844524,-153.0,0.00051176,120]
[340122906,1728631844534,-153.0,0.00051176,120]
[340122907,1728631844544,-153.0,0.00051176,120]
[340122908,1728631844555,-153.0,0.00051176,120]
[340122909,1728631844564,-153.0,0.00051176,120]
[340122910,1728631844574,-153.0,0.00051176,120]
[340122911,1728631844583,-153.0,0.00051194,120]
[340122912,1728631844593,-153.0,0.00051194,120]
[340122913,1728631844603,-153.0,0.00051194,120]
[340122914,1728631844612,-153.0,0.00051194,120]
[340122915,1728631844621,-153.0,0.00051194,120]
[340122916,1728631844632,-2457.28705186,0.00051225,120]
[340122917,1728631844645,-1000.0,0.00052,120]
[340122918,1728631844655,-179.20443599,0.000533,120]
[340122919,1728631844666,-781.96,0.00053989,10]
[340122920,1728631844679,-893.17,0.00054,7]
[340122921,1728631844691,-1000.0,0.00054,120]
[340122922,1728631844707,-400.0,0.00054376,2]
[340122923,1728631844718,-5419.359999,0.000547,120]
[340122924,1728631844729,-5419.359999,0.000547,120]
[340122925,1728631844740,-1373.39,0.00054794,120]
[340122926,1728631844752,-1373.39,0.00054794,120]
[340122927,1728631844762,-1373.39,0.00054794,120]
[340122928,1728631844773,-1373.39,0.00054794,120]
[340122929,1728631844784,-433.14540948,0.00054794,120]
[340122934,1728631859961,155.0,0.0004,2]
[340122935,1728631865093,155.0,0.0004,2]
[340122936,1728631869685,155.0,0.0004,2]
[340122937,1728631870148,159.588179,0.00026986,2]
[340122938,1728631870493,159.588179,0.00032776,2]
[340122939,1728631870845,159.588179,0.00038565,2]
[340122940,1728631874342,198.47476866,0.0004,2]
[340122941,1728631920214,178.63,0.000399,2]
[340122943,1728632226514,160.77,0.000399,2]
[340122945,1728632402859,159.588179,0.00026986,2]
[340122946,1728632403243,159.588179,0.00033861,2]
[340122955,1728632533107,150.0,0.000397,2]
[340122958,1728632784108,1000.0,0.0004,120]
[340122959,1728632826264,3960.78896515,0.0004,2]
[340122973,1728632838831,150.0,0.000397,2]
[340122974,1728632875432,5000.0,0.0004,2]
[340122975,1728632891833,155.0,0.0004,2]
[340122976,1728632896723,155.0,0.0004,2]
[340122977,1728632901235,155.0,0.0004,2]
[340122978,1728632903504,177.01987602,0.0003992,2]
[340122979,1728632906082,155.0,0.0004,2]
[340122980,1728632910589,155.0,0.0004,2]
[340122981,1728632915095,155.0,0.0004,2]
[340122982,1728632919729,227.93987797,0.0004,2]
[340122987,1728632978794,605.81827875,0.000398,6]
[340122992,1728633011722,6538.656,0.00037354,2]
[340123010,1728633038044,-500.0,0.00040198,6]
[340123011,1728633038203,-105.81827875,0.00040198,6]
[340123013,1728633038214,-748.71138135,0.00040596,8]
[340123014,1728633038223,-159.588179,0.00040736,2]
[340123015,1728633038235,-222.736,0.00043113,30]
[340123016,1728633038246,-300.0,0.00043113,30]
[340123017,1728633038258,-171.428571,0.00044658,2]
[340123018,1728633038270,-340.0,0.00044658,2]
[340123019,1728633038280,-550.0,0.00044873,30]
[340123020,1728633038290,-550.0,0.00044873,5]
[340123021,1728633038300,-1393.62179196,0.00044874,2]
[340123022,1728633038321,-1390.37174304,0.00044874,2]
[340123023,1728633038332,-4339.4924858,0.00045066,2]
[340123024,1728633038343,-2128.11815434,0.00045559,2]
[340123025,1728633038360,-655.87538066,0.00045559,2]
[340123026,1728633038369,-166.829951,0.00045574,2]
[340123027,1728633038378,-178.571428,0.00045788,2]
[340123028,1728633038389,-178.571428,0.00046185,2]
[340123029,1728633038398,-2783.993535,0.00046244,2]
[340123030,1728633038408,-178.571428,0.00046583,2]
[340123031,1728633038417,-178.571428,0.00046981,2]
[340123032,1728633038426,-178.571428,0.00047378,2]
[340123033,1728633038436,-159.588179,0.00047611,120]
[340123034,1728633038445,-770.0,0.00047622,5]
[340123035,1728633038455,-178.571428,0.00047776,2]
[340123036,1728633038464,-178.571428,0.00048174,2]
[340123037,1728633038475,-550.0,0.00049361,30]
[340123038,1728633038485,-340.0,0.00049517,2]
[340123039,1728633038494,-740.0,0.00050539,15]
[340123040,1728633038503,-153.0,0.00051625,120]
[340123041,1728633038513,-153.0,0.00051625,120]
[340123042,1728633038522,-153.0,0.00051625,120]
[340123043,1728633038532,-153.0,0.00051625,120]
[340123044,1728633038541,-153.0,0.00051625,120]
[340123045,1728633038550,-153.0,0.00051625,120]
[340123046,1728633038560,-153.0,0.00051625,120]
[340123047,1728633038570,-153.0,0.00051628,120]
[340123048,1728633038579,-153.0,0.00051628,120]
[340123049,1728633038589,-153.0,0.00051628,120]
[340123050,1728633038600,-153.0,0.00051628,120]
[340123051,1728633038609,-153.0,0.00051628,120]
[340123052,1728633038618,-153.0,0.00051628,120]
[340123053,1728633038628,-153.0,0.00051628,120]
[340123054,1728633038638,-153.0,0.00051645,120]
[340123055,1728633038647,-153.0,0.00051645,120]
[340123056,1728633038656,-153.0,0.00051645,120]
[340123057,1728633038666,-153.0,0.00051645,120]
[340123058,1728633038675,-153.0,0.00051645,120]
[340123059,1728633038685,-153.0,0.00051647,120]
[340123060,1728633038694,-153.0,0.00051647,120]
[340123061,1728633038703,-450.31799667,0.00052,120]
[340123074,1728633055602,150.214,0.00037354,2]
[340123075,1728633060012,150.0,0.00037354,2]
[340123076,1728633064906,250.0,0.00037354,2]
[340123077,1728633073557,150.084,0.00037354,2]
[340123078,1728633124405,2000.0,0.0004,120]